Cogmind - Beta 16 @@@ ROGUE MODE // 2026.01.10 @ 07:15:16 Player: MrFartsburg Result: Destroyed by Y-45 Defender with Beam Rifle Performance ------------- Evolutions (2) 1000 Regions Visited (4) 800 Robots Destroyed (39) 195 Value Destroyed (791) 791 Prototype IDs (3) 60 Alien Tech Used (0) 0 Bonus (200) 200 TOTAL SCORE: 3046 Bonus ------- Pacifist 200 Cogmind --------- Core Integrity 0/550 Matter 46/300 Energy 3/100 System Corruption 4% Temperature Critical (844) Movement Core (50) Location -8/Materials Parts ------- > --- POWER (3) -------- (None) > --- PROPULSION (3) --- (None) > --- UTILITY (2) ------ (None) > --- WEAPON (3) ------- Hammer > --- INVENTORY (5) ---- Hardened Light Armor Plating Hammer Peak State ------------ > --- POWER ------------ Deuterium Engine Nuclear Core > --- PROPULSION ------- Carbon-fiber Leg Wheel Wheel > --- UTILITY ---------- Improved Targeting Computer Recoil Stabilizer > --- WEAPON ----------- Field Laser Heavy Particle Gun Shotgun > --- INVENTORY -------- Aluminum Leg Compact Matter Pod Particle Charger Hardened Light Armor Plating Hammer [Rating: 26] Favorites ----------- Power Ion Engine Engine Ion Engine Power Core Nuclear Core Propulsion Light Treads Treads Light Treads Leg Aluminum Leg Wheel Wheel Hover Unit Hover Unit Flight Unit Flight Unit Utility Small Storage Unit Device Recoil Stabilizer Storage Small Storage Unit Processor Improved Targeting Computer Hackware Hacking Suite Protection Utility Shielding Weapon EM Pulse Gun Energy Gun EM Pulse Gun Energy Cannon Beam Cannon Ballistic Gun Shotgun Impact Weapon Hammer Special Melee Weapon Datajack Build | -11 -10 -9 -9 -8 ------- Run | Yrd Mat Mat Min Mat Slots Evolved 4 | . . 2 . 2 Power 2 | . . 1 . 1 Propulsion 1 | . . . . 1 Utility . | . . . . . Weapon 1 | . . 1 . . Parts Attached 42 | 6 1 12 2 21 Power 8 | 1 . 4 . 3 Engine 7 | 1 . 4 . 2 Core 1 | . . . . 1 Reactor . | . . . . . Propulsion 13 | 2 . 2 2 7 Treads 4 | 2 . 2 . . Leg 2 | . . . . 2 Wheel 4 | . . . . 4 Hover 1 | . . . . 1 Flight 2 | . . . 2 . Utility 10 | 1 1 1 . 7 Device 4 | . . . . 4 Storage 2 | 1 . . . 1 Processor 1 | . . . . 1 Hackware 1 | . . . . 1 Protection 2 | . 1 1 . . Artifact . | . . . . . Weapon 11 | 2 . 5 . 4 Energy Gun 5 | 2 . 1 . 2 Energy Cannon 1 | . . 1 . . Ballistic Gun 2 | . . 1 . 1 Ballistic Cannon . | . . . . . Launcher . | . . . . . Special Weapon . | . . . . . Impact Weapon 2 | . . 1 . 1 Slashing Weapon . | . . . . . Piercing Weapon . | . . . . . Special Melee Weapon 1 | . . 1 . . Unidentified Prototypes 1 | . . . . 1 Parts Lost 30 | . . 8 3 19 Power 6 | . . 1 1 4 Propulsion 12 | . . 2 2 8 Utility 5 | . . 1 . 4 Weapon 7 | . . 4 . 3 Highest Loss Streak 13 | . . 5 4 13 To Critical Strikes 1 | . . 1 . . Average Backups 3 | 1 3 5 5 3 Power . | . . . . . Propulsion 1 | 1 1 2 2 . Utility 1 | . . 1 1 2 Weapon 1 | . 1 1 . . Tool/Special . | . . . . . Unused Backups 5 | . 1 . 1 3 Power . | . . . . . Propulsion 1 | . . . . 1 Utility 3 | . 1 . . 2 Weapon 1 | . . . 1 . Tool/Special . | . . . . . Average Slot Usage (%) 79 | . 96 94 64 68 Engine 13 | . 14 20 11 8 Core 1 | . . . . 4 Treads 14 | . 28 18 17 . Leg 1 | . . . . 4 Wheel 2 | . . . . 7 Flight 2 | . . . 3 4 Device 1 | . . . . 4 Storage 7 | . 14 6 10 . Processor 2 | . . . . 8 Protection 9 | . 10 14 11 2 Energy Gun 13 | . 28 14 . 12 Energy Cannon 1 | . . 4 . . Ballistic Gun 3 | . . 5 . 5 Impact Weapon 5 | . . 5 11 3 Peak Build Rating 26 | 6 7 11 8 26 Average Rating 8 | 5 6 9 5 16 On Entrance 5 | . 6 7 8 5 Avg Prop Armor Cover (%) 7 | . . . . 7 Naked Turns 2 | . . . . 2 Heaviest Build 31 | 14 15 23 13 31 Greatest Support 40 | 40 40 40 40 30 Greatest Overweight (x) 7 | 4 . 7 4 2 Average Overweight (x) . | . . . . 1 Largest Inventory Capacity 8 | 8 8 8 8 5 Average Capacity 7 | 7 8 6 7 5 Most Carried 7 | 4 6 7 6 5 Average Carried 3 | 1 3 5 5 3 Final Capacity 8 | 8 8 8 5 5 Final Carried 6 | 2 6 4 4 2 Class Distribution -------------------- 74% | Mutant 12% | Gunner 6% | Scavenger-Mutant 6% | Tank Dominant Class ---------------- Mutant | -10/Materials Scavenger-Mutant | -9/Materials Mutant | -9/Mines Gunner | -8/Materials Resources | -11 -10 -9 -9 -8 ----------- Run | Yrd Mat Mat Min Mat Matter Collected 598 | 260 . 143 25 170 Remotely . | . . . . . Salvage Created 1031 | . . 385 287 359 Parts 58 | . . 30 5 23 Haulers Intercepted . | . . . . . Recyclers Shooed . | . . . . . Parts Field Recycled . | . . . . . Retrieved Matter . | . . . . . Parts Self-Destructed . | . . . . . Prevented . | . . . . . Parts Restored . | . . . . . Kills | -11 -10 -9 -9 -8 ------- Run | Yrd Mat Mat Min Mat Combat Hostiles Destroyed 29 | . . 11 10 8 Melee 5 | . . . 5 . Guns 12 | . . 5 . 7 Cannons 6 | . . 6 . . Classes Destroyed 9 | . . 5 1 3 Worker 8 | . . 3 . 5 Operator 1 | . . . . 1 Watcher 1 | . . 1 . . Swarmer 15 | . . 7 4 4 Grunt 8 | . . 2 5 1 Brawler 1 | . . . . 1 Duelist 1 | . . . 1 . Sentry 3 | . . 2 . 1 Hunter 1 | . . . . 1 Best Kill Streak 7 | . . 7 5 5 Combat Bots Only 5 | . . 5 5 4 Max Kills in Single Turn 3 | . . 2 1 3 Gunslinging 1 | . . . . 1 Exploded . | . . . . . Melee 1 | . . . 1 . Uniques/NPCs Destroyed . | . . . . . Combat | -11 -10 -9 -9 -8 -------- Run | Yrd Mat Mat Min Mat Hostile Shots Fired 297 | . . 135 48 114 Missed 69 | . . 32 19 18 Hits 228 | . . 103 29 96 Melee 1 | . . . . 1 Projectile 227 | . . 103 29 95 AOE 1 | . . . . 1 Critical Strikes 3 | . . 2 . 1 Damage Taken 2845 | . 24 965 313 1543 Core 724 | . 8 88 74 554 Absorbed by Shields . | . . . . . Redirected to Shielding 22 | . . 12 10 . Core Remaining (%) 85 | 100 96 . 59 . Volleys Fired 61 | . . 35 . 26 Largest 3 | . . 3 . 3 Hottest 150 | . . 150 . 141 Shots Fired 134 | . . 74 . 60 Gun 106 | . . 46 . 60 Cannon 28 | . . 28 . . Launcher . | . . . . . Special . | . . . . . Kinetic 21 | . . 7 . 14 Thermal 90 | . . 44 . 46 Explosive . | . . . . . Electromagnetic 23 | . . 23 . . Robot Hit Streak 14 | . . 6 . 14 Robot Miss Streak 7 | . . 7 . 6 Penetration Max . | . . . . . Secondary Targets 2 | . . . . 2 Max Gunslinging Chain 1 | . . . . 1 Shots Hit Robots 104 | . . 33 25 46 Core Hits 41 | . . 17 3 21 Critical Kills 2 | . . . 2 . Critical Parts Destroyed 5 | . . . 5 . Critical Strikes 10 | . . . 7 3 Burn 3 | . . . . 3 Smash 7 | . . . 7 . Melee Attacks 42 | . . 2 32 8 Impact 42 | . . 2 32 8 Slashing . | . . . . . Piercing . | . . . . . Sneak Attacks 2 | . . . 1 1 Combat Hostiles 1 | . . . 1 . Follow-up Attacks . | . . . . . Damage Inflicted 2223 | . . 542 713 968 Guns 1092 | . . 265 . 827 Cannons 277 | . . 277 . . Explosions . | . . . . . Melee 848 | . . . 713 135 Ramming 6 | . . . . 6 Kinetic 236 | . . 34 . 202 Thermal 1010 | . . 385 . 625 Explosive . | . . . . . Electromagnetic 123 | . . 123 . . Impact 848 | . . . 713 135 Slashing . | . . . . . Piercing . | . . . . . Highest Corruption 4 | . . . . 4 Average Corruption 4 | . . . . 4 Corruption Purged . | . . . . . Corruption Blocked . | . . . . . Effects 1 | . . . . 1 Matter Fused 1 | . . . . 1 Overload Shots . | . . . . . Overflow Damage 180 | . . . 180 . Projectiles . | . . . . . Explosions . | . . . . . Melee 180 | . . . 180 . Knockbacks 4 | . . . 4 . Impact 4 | . . . 4 . Kinetic . | . . . . . Secondary . | . . . . . Self-Inflicted Damage 3 | . . . . 3 Shots . | . . . . . Rammed 1 | . . . . 1 Targets Rammed 1 | . . . . 1 Kicked . | . . . . . Crushed . | . . . . . Highest Temperature 956 | . . 504 . 956 Average Temperature 263 | . . 220 . 322 Received Heat Transfer 837 | . . 114 153 570 Effects 40 | . . 14 . 26 Shutdowns 11 | . . 5 . 6 Energy Bleed 8 | . . 2 . 6 Interference 1 | . . 1 . . Matter Decay 7 | . . . . 7 Short Circuit 7 | . . 4 . 3 Damage (minor) 2 | . . 2 . . Damage (major) 2 | . . . . 2 Damage (core) 2 | . . . . 2 Siege Activations . | . . . . . Martial Activations . | . . . . . Shielding Activations . | . . . . . Robots Disrupted . | . . . . . Combat Hostiles . | . . . . . Robots Corrupted 6 | . . . 5 1 Combat Hostiles 6 | . . . 5 1 Parts Fried 9 | . . . 8 1 Impact Corruptions 15 | . . . 14 1 Robots Melted . | . . . . . Combat Hostiles . | . . . . . Parts Melted 3 | . . 1 . 2 Heat Transferred 2405 | . . 888 . 1517 Parts Sabotaged . | . . . . . Parts Stolen . | . . . . . Parts Stripped . | . . . . . Power Chain Reactions . | . . . . . Alert | -11 -10 -9 -9 -8 ------- Run | Yrd Mat Mat Min Mat Maximum Alert Level . | . . . . . Low Security (%) 100 | 100 100 100 100 100 Level 1 . | . . . . . Level 2 . | . . . . . Level 3 . | . . . . . Level 4 . | . . . . . Level 5 . | . . . . . High Security . | . . . . . Max Security . | . . . . . Peak Influence 189 | . . 183 189 115 Initial 73 | . . . 30 73 Average 31 | . . 103 35 29 Influence Increases 893 | . . 343 305 245 Destroy 0b10 Robot/C 580 | . . 220 200 160 Destroy 0b10 Robot/NC 50 | . . 20 . 30 Destroy Leader 112 | . . 42 30 40 Disable Machine 45 | . . 15 15 15 Destroy Structure 1 | . . 1 . . Lose Combat Pursuer 105 | . . 45 60 . Influence Decreases 884 | . . 264 195 425 Entered New Map 165 | . . . 49 116 Time Decay 461 | . . 184 126 151 Lost Part 258 | . . 80 20 158 Squads Dispatched 3 | . . 1 . 2 Investigation 2 | . . 1 . 1 Extermination . | . . . . . Reinforcement . | . . . . . Assault . | . . . . . Garrison 1 | . . . . 1 Intercept . | . . . . . Searches Triggered . | . . . . . Construction Impeded . | . . . . . Haulers Reinforced . | . . . . . Active Scanning Responses . | . . . . . Cargo Convoy Interrupts . | . . . . . Stealth | -11 -10 -9 -9 -8 --------- Run | Yrd Mat Mat Min Mat Distress Signals 2 | . . 1 . 1 Communications Jammed . | . . . . . Distress Signals . | . . . . . Times Spotted 57 | . . 23 13 21 Peak Tracking Total 12 | . . 7 5 12 Tactical Retreats 5 | . . 2 3 . Traps | -11 -10 -9 -9 -8 ------- Run | Yrd Mat Mat Min Mat Traps Triggered 1 | . 1 . . . Indirectly . | . . . . . Trap Hack Attempts . | . . . . . Triggered . | . . . . . Disarmed . | . . . . . Reprogrammed . | . . . . . Reused . | . . . . . Traps Extracted . | . . . . . Installed . | . . . . . Triggered . | . . . . . Machines | -11 -10 -9 -9 -8 ---------- Run | Yrd Mat Mat Min Mat Machines Disabled 3 | . . 1 1 1 Max in Single Turn 1 | . . 1 1 1 Machines Repaired . | . . . . . Machines Dismantled . | . . . . . Machines Sabotaged . | . . . . . Overloaded Fab Kills . | . . . . . Hacking | -11 -10 -9 -9 -8 --------- Run | Yrd Mat Mat Min Mat Machines Accessed 7 | . 3 2 . 2 Terminals 4 | . 2 1 . 1 Fabricators . | . . . . . Repair Stations . | . . . . . Recycling Units 2 | . 1 . . 1 Scanalyzers 1 | . . 1 . . Garrison Access . | . . . . . Total Hacks 31 | . 9 15 . 7 Successful 19 | . 4 11 . 4 Failed 12 | . 5 4 . 3 Catastrophic 1 | . . . . 1 Database Lockouts . | . . . . . Manual . | . . . . . Terminals 13 | . 5 6 . 2 Fabricators . | . . . . . Repair Stations . | . . . . . Recycling Units 9 | . 4 . . 5 Scanalyzers 9 | . . 9 . . Garrison Access . | . . . . . Terminal Hacks 5 | . 1 4 . . Prototype ID Bank 1 | . . 1 . . Emergency Access Points 1 | . 1 . . . Alert Level 1 | . . 1 . . Dispatch Records 1 | . . 1 . . Zone Layout 1 | . . 1 . . Fabricator Hacks . | . . . . . Repair Station Hacks . | . . . . . Recycling Unit Hacks 7 | . 3 . . 4 Recycle Component 3 | . 1 . . 2 Process 2 | . 1 . . 1 Report Inventory 2 | . 1 . . 1 Scanalyzer 7 | . . 7 . . Insert Component 4 | . . 4 . . Analyze 3 | . . 3 . . Garrison Access Hacks . | . . . . . Unauthorized Hacks . | . . . . . Terminals . | . . . . . Fabricators . | . . . . . Repair Stations . | . . . . . Recycling Units . | . . . . . Scanalyzers . | . . . . . Garrison Access . | . . . . . Data Cores Recovered 1 | . . . . 1 Used . | . . . . . Hacking Detections 4 | . 1 1 . 2 Full Trace Events 3 | . . 1 . 2 Feedback Events . | . . . . . Feedback Blocked . | . . . . . Robot Schematics Acquired . | . . . . . Robots Built . | . . . . . Authchips . | . . . . . Time . | . . . . . Total Robot Build Rating . | . . . . . Part Schematics Acquired 3 | . . 3 . . Parts Built . | . . . . . Authchips . | . . . . . Time . | . . . . . Total Part Build Rating . | . . . . . Part Studies Acquired . | . . . . . Parts Repaired . | . . . . . Time . | . . . . . Parts Recycled 3 | . 1 . . 2 Recycled Matter 71 | . 13 . . 58 Retrieved Matter . | . . . . . Retrieved Components . | . . . . . Parts Scanalyzed 3 | . . 3 . . Part Schematics Acquired 3 | . . 3 . . Parts Damaged . | . . . . . Bothacking | -11 -10 -9 -9 -8 ------------ Run | Yrd Mat Mat Min Mat Used RIF Installer . | . . . . . Robots Hacked . | . . . . . Non-combat . | . . . . . Combat . | . . . . . Robot Hacks Applied . | . . . . . Relay Couplers Released . | . . . . . Fabnet Peak Effective % . | . . . . . Robots Rewired . | . . . . . Allies Hacked . | . . . . . Hacks Repelled . | . . . . . Allies | -11 -10 -9 -9 -8 -------- Run | Yrd Mat Mat Min Mat Total Allies . | . . . . . Largest Group . | . . . . . Highest-Rated Group . | . . . . . Highest-Rated Ally . | . . . . . Total Orders . | . . . . . Ally Attacks . | . . . . . Total Damage . | . . . . . Kills . | . . . . . Allies Corrupted . | . . . . . Allies Melted . | . . . . . Intel | -11 -10 -9 -9 -8 ------- Run | Yrd Mat Mat Min Mat Active Infowar (turns) 43 | . . . . 43 Seismic 43 | . . . . 43 Robot Analysis Total . | . . . . . Derelict Logs Recovered 1 | . . . 1 . Drone Launches . | . . . . . Drone Recoveries . | . . . . . Exploration | -11 -10 -9 -9 -8 ------------- Run | Yrd Mat Mat Min Mat Turns Passed 2432 | 646 380 441 438 527 Spaces Moved 1331 | 388 234 177 227 305 Core 51 | 24 . 16 1 10 Treads 960 | 364 234 161 201 . Legs 52 | . . . . 52 Wheels 155 | . . . . 155 Hover 31 | . . . . 31 Flight 82 | . . . 25 57 Fastest Speed 37 | 50 160 160 37 50 Average Speed 151 | 163 160 176 151 117 Slowest Speed 400 | 250 160 400 250 260 Overloaded Moves . | . . . . . Propulsion Burnouts . | . . . . . Robots Hopped . | . . . . . Potential Cave-ins . | . . . . . Cave-ins Triggered . | . . . . . Exploration Rate (%) 28 | 23 30 18 46 27 Regions Visited 4 Branch Regions 1 Pre-discovered Areas 1 | . . . 1 . Known Exits Taken . | . . . . . Unknown Exits Taken 4 | 1 1 1 1 . Scrap Searched 1 | . . . 1 . Spaces Dug . | . . . . . Terrain Destroyed . | . . . . . Melee . | . . . . . Projectile . | . . . . . AOE . | . . . . . Terrain Rammed . | . . . . . Walls Destroyed . | . . . . . Machines Disabled . | . . . . . Actions | -11 -10 -9 -9 -8 --------- Run | Yrd Mat Mat Min Mat Total 1566 | 401 240 241 265 419 Wait 12 | . . . 1 11 Move 1327 | 387 233 176 226 305 Hop . | . . . . . Pick Up 52 | 8 6 10 2 26 Fast Attach . | . . . . . Attach 45 | 6 1 11 2 25 Detach 7 | . . 1 1 5 Swap 3 | . . 2 . 1 Drop 16 | . . 4 1 11 Fire 61 | . . 35 . 26 Melee 42 | . . 2 32 8 Ram 1 | . . . . 1 Kick . | . . . . . Crush . | . . . . . Escape Stasis . | . . . . . Rewire . | . . . . . Trap . | . . . . . Miscellaneous . | . . . . . Route ------- -11/Scrapyard -10/Materials (discovered 2 exits: *Mat / [*Min]) -9/Materials -9/Mines -8/Materials History --------- Turn | Location | Event 15 | -11/Scrapyard | Discovered new exit (range 15) 647 | -11/Scrapyard | Entered Materials 648 | -10/Materials | Build established: Mutant 819 | -10/Materials | Discovered new exit (range 6) 1011 | -10/Materials | Discovered new exit (range 10) 1027 | -10/Materials | Entered another Materials area 1027 | -9/Materials | Evolved 2 slots: Power x1, Weapon x1 1254 | -9/Materials | Lost 5 parts (1p2n2w) 1445 | -9/Materials | Discovered new exit (range 15) 1468 | -9/Materials | Entered Mines 1500 | -9/Mines | Lost 4 parts (1p1u2w) 1597 | -9/Mines | Learned location of Storage (-7) 1673 | -9/Mines | Found a hidden stash of uninstalled traps 1850 | -9/Mines | Discovered new exit (range 12) 1906 | -9/Mines | Entered Materials 1906 | -8/Materials | Evolved 2 slots: Power x1, Propulsion x1 2081 | -8/Materials | Lost 5 parts (1p3n1u) 2388 | -8/Materials | Garrison activated, responded to threat 2402 | -8/Materials | Build established: Gunner 2410 | -8/Materials | Core integrity fell below 50% 2431 | -8/Materials | Core integrity fell below 20% 2433 | -8/Materials | Destroyed by Y-45 Defender with Beam Rifle Last Messages --------------- (-2). R-06 Scavenger collects Lgt. Ion Engine. Overheating: Matter decay (-15). K-01 Serf collects debris. Wheel destroyed. M-13 Machinist repairs G-47 Trooper Particle Gun. Acquired Hammer. Imp. Targeting Computer broken. Overheating: Short circuit. Carbon-fiber Leg destroyed. R-06 Scavenger collects Wheel. Overheating: Core damaged (-55). M-13 Machinist repairs G-47 Trooper Lgt. Nuclear Core. K-01 Serf collects debris. Discarded Broken Imp. Targeting Computer. Com. Matter Pod destroyed. Overheating: Matter decay (-13). R-06 Scavenger collects Med. Matter Pod. Map ----- +----------------------------------------------------+ | ?????????????????????????????????????????????????? | | ?????????????????????????????????????????????????? | | ?????????????????????????????????????????????????? | | ?????????????????????????????????????????????????? | | ?????????????????????????????????????????????????? | | ?????????????????????????????????????????????????? | | ?????????????????????????????????????????????????? | | ?????????????????????????????????????????????????? | | ?????????????????????????????????????????????????? | | ?????????????????????????????????????????????????? | | ???????????????????????? ?????????????????????? | | ???????????????????????? !!????????????????????? | | ???????????????????????? !!????????????????????? | | ???????????????????????# ! ????????????????????? | | ???????????????????????# #????????????????????? | | ???????????????????????#Yg #????????????????????? | | ???????????????????????# #????????????????????? | | ???????????????????????# #????????????????????? | | ???????????????????????# #????????????????????? | | ???????????????????????# #????????????????????? | | ???????????#############u% #????????????????????? | | ?????????? r ########?????????????? | | ?????????? % #####?????????? | | ????????? g =%*%[ ????????? | | ????????? g ^ *% l ????????? | | ????????????????# b @% gm """???????????? | | ????????????????# T k ######a """???????????? | | ????????????????+ " u #????# """""?????????? | | ????????????????# #????# """""?????????? | | ????????????????# t #????# """"??????????? | | ????????????????####+####+###### ???????????? | | ?????????????????? ??# # ????????????? | | ?????????????????T ???# # #?????????????? | | ???????????????? ????# # #?????????????? | | ???????????????# ?????# # #?????????????? | | ???????????????#??????# / #?????????????? | | ??????????????????????# # #?????????????? | | ??????????????????????# # #?????????????? | | ??????????????????????# # #?????????????? | | ??????????????????????# # #?????????????? | | ??????????????????????########## #?????????????? | | ???????????????????????????????# #?????????????? | | ????????????????????????######## #?????????????? | | ????????????????????????# %[ #??????##?????? | | ????????????????????????# =[[ ####### #?????? | | ????????????????????????# = #??? | | ??????????????????####### ########### # #??? | | ??????????????########%"# # # #???????? | | ??????????????# # # + #???????? | | ??????????????# [ # # """"""" ## #???????? | +----------------------------------------------------+ Best States ------------- Heat Dissipation 31 Coolant Potential 50 Energy Generation 28 Energy Capacity 440 Matter Stores 300 Matter Capacity 450 Sight Range 16 Terrain Scan Density 10 Armor Coverage 150 Utility Shielding 33 Evasion (%) 55 Targeting Accuracy 6 Recoil Reduction 4 Particle Charging 15 Offensive Hacking 10 Item Schematics ----------------- Sml. Storage Unit | -9/Materials | Scanalyzed Med. Matter Pod | -9/Materials | Scanalyzed Aluminum Leg | -9/Materials | Scanalyzed Robot Schematics ------------------ None Fabricated ------------ Nothing Repaired ---------- Nothing Studied --------- None Alien Tech Used ----------------- None Achievements -------------- Overwhelming Well Done Challenges ------------ None Game ------ Seed EnhancedZhirovDiverter Manual? 0 Play Time 00:49:35 Cumulative 3.1 hours Start 2026.01.09 @ 05:35:32 End 2026.01.10 @ 07:15:16 Sessions 3 Manual Loads 0 Difficulty Rogue Special Mode None Game No. 4 Rogue 4 Adventurer 0 Explorer 0 Win Type - Total 0 Types 0/0/0/0/0/0/0/0/0/0 Lore% 1 Gallery% 5 Achievement% 5 Wizard Run 0 Options --------- Layout 1 ASCII 0 Keyboard 0 Movement Arrows Keybinds 0 Fullscreen 1 Font 32/SmallcapsGlow Map View 50x35 Zoom Use 0% Tactical HUD 0 Map Filters NONE Filters NONE Steam 1 RUN: 1031b9b5-3cf1-476f-bd5b-f208de4aee3b